[Event "ESP chT Honor Division 2019"]
[Site "Melilla"]
[Date "2019.10.04"]
[Round "5.8"]
[White "Peralta, Fernando"]
[Black "Ponomariov, Ruslan"]
[Result "1/2-1/2"]
[ECO "D19"]
[WhiteElo "2569"]
[BlackElo "2675"]
[Annotator "ChessBase"]
[PlyCount "53"]
[EventDate "2019.09.30"]
[EventType "team-tourn"]
[EventCountry "ESP"]
[SourceTitle "playchess.com"]
[Source "ChessBase"]
[SourceQuality "1"]
[TimeControl "40/5400+30:1800+30"]

1. d4 {[%emt 0:00:00]} d5 {[%emt 0:00:00]} 2. c4 {[%emt 0:00:14]} c6 {[%emt 0:00:00]} 3. Nf3 {[%emt 0:00:29]} Nf6 {[%emt 0:00:06]} 4. Nc3 {[%emt 0:00:12]} dxc4 {[%emt 0:00:24]} 5. a4 {[%emt 0:00:10]} Bf5 {[%emt 0:00:12]} 6. e3 {[%emt 0:00:36]} e6 {[%emt 0:00:22]} 7. Bxc4 {[%emt 0:00:07]} Bb4 {[%emt 0:00:31]} 8. O-O {[%emt 0:00:08]} O-O {[%emt 0:00:23]} 9. Qe2 {[%emt 0:00:59]} Bg6 {[%emt 0:01:09]} 10. Ne5 {[%emt 0:00:49]} Nbd7 {[%emt 0:00:27]} 11. Nxg6 {[%emt 0:00:52]} hxg6 {[%emt 0:00:07]} 12. Rd1 {[%emt 0:00:13]} Qa5 {[%emt 0:01:06]} 13. Na2 {[%emt 0:07:53]} Qxa4 {[%emt 0:16:02]} 14. e4 {[%emt 0:05:57]} Qa5 {[%emt 0:02:49]} 15. Nxb4 {[%emt 0:01:35]} Qxb4 {[%emt 0:00:19]} 16. Ra3 {[%emt 0:11:46]} b5 {[%emt 0:09:41]} 17. Ba2 {[%emt 0:03:31]} e5 {[%emt 0:00:38]} 18. Rg3 {[%emt 0:18:39]} exd4 {[%emt 0:12:10]} 19. Rxg6 {[%emt 0:02:26]} Ne5 {[%emt 0:10:04]} 20. Rxf6 {[%emt 0:10:32]} gxf6 {[%emt 0:01:07]} 21. Qh5 {[%emt 0:00:51]} d3 {[%emt 0:05:53]} 22. f4 {[%emt 0:06:16]} Nc4 {[%emt 0:03:13]} 23. Qg4+ {[%emt 0:02:39]} Kh7 {[%emt 0:00:23]} 24. Qh4+ {[%emt 0:00:16]} Kg7 {[%emt 0:00:16]} 25. Qg4+ {[%emt 0:05:07]} Kh7 {[%emt 0:00:27]} 26. Qf5+ {[%emt 0:04:57]} Kg8 {[%emt 0:04:24]} 27. Qg4+ 1/2-1/2

[Event "ESP chT Honor Division 2019"]
[Site "Melilla"]
[Date "2019.10.04"]
[Round "5.9"]
[White "Anton Guijarro, David"]
[Black "Korneev, Oleg"]
[Result "0-1"]
[ECO "D45"]
[WhiteElo "2674"]
[BlackElo "2504"]
[Annotator "ChessBase"]
[PlyCount "80"]
[EventDate "2019.09.30"]
[EventType "team-tourn"]
[EventCountry "ESP"]
[SourceTitle "playchess.com"]
[Source "ChessBase"]
[SourceQuality "1"]
[TimeControl "40/5400+30:1800+30"]

1. c4 {[%emt 0:00:00]} c6 {[%emt 0:00:12]} 2. d4 {[%emt 0:00:50]} d5 {[%emt 0:02:28]} 3. Nf3 {[%emt 0:00:20]} Nf6 {[%emt 0:00:02]} 4. Nc3 {[%emt 0:00:44]} e6 {[%emt 0:00:05]} 5. e3 {[%emt 0:00:35]} Nbd7 {[%emt 0:00:04]} 6. Qc2 {[%emt 0:00:42]} Bd6 {[%emt 0:00:04]} 7. b3 {[%emt 0:00:41]} O-O {[%emt 0:08:09]} 8. Be2 {[%emt 0:00:24]} b6 {[%emt 0:02:13]} 9. O-O {[%emt 0:00:32]} Bb7 {[%emt 0:00:02]} 10. Bb2 {[%emt 0:00:07]} Qe7 {[%emt 0:00:05]} 11. Rfe1 Rfe8 {[%emt 0:06:29]} 12. Rad1 {[%emt 0:02:01]} Rad8 {[%emt 0:00:35]} 13. Bf1 {[%emt 0:00:17]} e5 {[%emt 0:02:21]} 14. dxe5 {[%emt 0:00:30]} Nxe5 {[%emt 0:00:30]} 15. Nd4 {[%emt 0:00:02]} dxc4 {[%emt 0:08:22]} 16. bxc4 {[%emt 0:10:15]} Qc7 17. h3 Bf8 {[%emt 0:15:50]} 18. f4 {[%emt 0:07:33]} Ng6 {[%emt 0:15:10]} 19. g3 {[%emt 0:36:51]} h5 {[%emt 0:13:00]} 20. Re2 {[%emt 0:00:44]} Bc5 {[%emt 0:02:58]} 21. Nf5 {[%emt 0:00:30]} Bc8 {[%emt 0:04:47]} 22. Rde1 {[%emt 0:16:01]} Qd7 {[%emt 0:10:58]} 23. Nh4 Nxh4 {[%emt 0:00:30]} 24. gxh4 {[%emt 0:04:14]} Qf5 {[%emt 0:01:25]} 25. Qc1 {[%emt 0:08:13]} Qxf4 {[%emt 0:01:03]} 26. Na4 {[%emt 0:00:03]} Qxh4 {[%emt 0:03:35]} 27. Nxc5 {[%emt 0:00:17]} bxc5 {[%emt 0:00:30]} 28. Bg2 {[%emt 0:03:26]} Bxh3 {[%emt 0:00:56]} 29. Bxf6 {[%emt 0:00:53]} gxf6 {[%emt 0:00:01]} 30. Bxh3 {[%emt 0:00:25]} Qxh3 {[%emt 0:00:02]} 31. Rg2+ {[%emt 0:01:01]} Kh8 {[%emt 0:00:52]} 32. e4 {[%emt 0:05:11]} Kh7 {[%emt 0:00:01]} 33. e5 {[%emt 0:00:55]} Rg8 {[%emt 0:01:55]} 34. Qc2+ {[%emt 0:00:29]} f5 {[%emt 0:00:46]} 35. Ree2 {[%emt 0:00:46]} Rxg2+ {[%emt 0:00:08]} 36. Rxg2 {[%emt 0:00:02]} Qe3+ {[%emt 0:01:09]} 37. Rf2 {[%emt 0:00:04]} Qe1+ {[%emt 0:00:32]} 38. Kh2 {[%emt 0:01:07]} Qxe5+ {[%emt 0:00:02]} 39. Kh3 {[%emt 0:00:15]} Qe3+ {[%emt 0:00:21]} 40. Kh2 {[%emt 0:00:11]} Rd3 {[%emt 0:00:24]} 0-1

[Event "ESP chT Honor Division 2019"]
[Site "Melilla"]
[Date "2019.10.04"]
[Round "5.10"]
[White "Asis Gargatagli, Hipolito"]
[Black "Lopez Martinez, Josep Manuel"]
[Result "0-1"]
[ECO "C45"]
[WhiteElo "2511"]
[BlackElo "2573"]
[Annotator "ChessBase"]
[PlyCount "79"]
[EventDate "2019.09.30"]
[EventType "team-tourn"]
[EventCountry "ESP"]
[SourceTitle "playchess.com"]
[Source "ChessBase"]
[SourceQuality "1"]
[TimeControl "40/5400+30:1800+30"]

1. e4 {[%emt 0:00:00]} e5 {[%emt 0:00:00]} 2. Nf3 {[%emt 0:00:00]} Nc6 3. d4 {[%emt 0:00:00]} exd4 {[%emt 0:00:45]} 4. Nxd4 {[%emt 0:00:07]} Nf6 {[%emt 0:00:56]} 5. Nxc6 {[%emt 0:00:11]} bxc6 6. e5 {[%emt 0:00:04]} Qe7 {[%emt 0:00:53]} 7. Qe2 {[%emt 0:00:10]} Nd5 {[%emt 0:00:50]} 8. h4 a5 {[%emt 0:01:56]} 9. g3 {[%emt 0:00:54]} Nb6 {[%emt 0:04:57]} 10. Nc3 {[%emt 0:24:09]} Ba6 {[%emt 0:07:46]} 11. Qe4 {[%emt 0:01:12]} Bxf1 {[%emt 0:02:58]} 12. Kxf1 {[%emt 0:02:22]} Qe6 {[%emt 0:01:26]} 13. b3 {[%emt 0:15:53]} Bb4 {[%emt 0:04:33]} 14. Bb2 {[%emt 0:11:23]} Bxc3 {[%emt 0:06:18]} 15. Bxc3 {[%emt 0:00:22]} f5 {[%emt 0:01:23]} 16. Qd4 {[%emt 0:04:34]} O-O {[%emt 0:05:56]} 17. f4 {[%emt 0:02:53]} a4 18. Kf2 Rfb8 {[%emt 0:12:49]} 19. Rhe1 {[%emt 0:06:28]} Nd5 20. Bd2 {[%emt 0:13:48]} Kf7 {[%emt 0:02:37]} 21. Red1 {[%emt 0:00:36]} Ke8 {[%emt 0:02:39]} 22. Re1 {[%emt 0:06:30]} Rb7 {[%emt 0:04:42]} 23. Kg1 Ne7 {[%emt 0:26:04]} 24. Qf2 {[%emt 0:01:24]} Rb5 {[%emt 0:01:00]} 25. Be3 {[%emt 0:00:30]} axb3 {[%emt 0:02:11]} 26. axb3 {[%emt 0:00:04]} Rba5 {[%emt 0:00:11]} 27. Rad1 {[%emt 0:03:07]} Ra2 {[%emt 0:03:07]} 28. Bd4 {[%emt 0:03:44]} Nd5 {[%emt 0:03:41]} 29. Qd2 {[%emt 0:00:55]} R8a3 30. Ra1 {[%emt 0:00:35]} Qg6 {[%emt 0:01:05]} 31. Kf2 Rxb3 {[%emt 0:04:01]} 32. Rxa2 {[%emt 0:01:54]} Qxg3+ {[%emt 0:00:03]} 33. Kf1 {[%emt 0:00:04]} Rf3+ {[%emt 0:00:48]} 34. Ke2 {[%emt 0:02:35]} Qg4 35. Rg1 {[%emt 0:00:03]} Re3+ {[%emt 0:00:49]} 36. Kf1 Qf3+ {[%emt 0:00:48]} 37. Qf2 {[%emt 0:00:48]} Qd1+ {[%emt 0:00:19]} 38. Kg2 {[%emt 0:00:11]} Qxd4 {[%emt 0:00:16]} 39. Ra8+ Kf7 40. c3 {[%emt 0:01:58]} 0-1

[Event "ESP chT Honor Division 2019"]
[Site "Melilla"]
[Date "2019.10.04"]
[Round "5.11"]
[White "Ibarra Jerez, Jose Carlos"]
[Black "Moskalenko, Viktor"]
[Result "1-0"]
[ECO "C05"]
[WhiteElo "2538"]
[BlackElo "2475"]
[Annotator "ChessBase"]
[PlyCount "93"]
[EventDate "2019.09.30"]
[EventType "team-tourn"]
[EventCountry "ESP"]
[SourceTitle "playchess.com"]
[Source "ChessBase"]
[SourceQuality "1"]
[TimeControl "40/5400+30:1800+30"]

1. e4 {[%emt 0:00:00]} e6 {[%emt 0:00:00]} 2. d4 {[%emt 0:00:31]} d5 3. Nd2 {[%emt 0:00:12]} Nf6 {[%emt 0:01:29]} 4. e5 {[%emt 0:00:37]} Nfd7 {[%emt 0:00:00]} 5. f4 {[%emt 0:04:22]} c5 {[%emt 0:00:46]} 6. Ngf3 {[%emt 0:00:11]} Nc6 {[%emt 0:35:10]} 7. Nb3 Qb6 {[%emt 0:00:07]} 8. dxc5 {[%emt 0:03:25]} Bxc5 {[%emt 0:00:06]} 9. Nxc5 {[%emt 0:00:25]} Nxc5 {[%emt 0:00:30]} 10. c3 {[%emt 0:01:03]} O-O {[%emt 0:05:08]} 11. Qc2 {[%emt 0:05:21]} Ne4 {[%emt 0:07:05]} 12. Bd3 {[%emt 0:17:12]} f5 {[%emt 0:17:24]} 13. Qe2 {[%emt 0:07:18]} Nc5 {[%emt 0:01:02]} 14. Bb1 {[%emt 0:09:55]} Qc7 {[%emt 0:06:24]} 15. O-O {[%emt 0:06:56]} a5 {[%emt 0:06:39]} 16. g4 {[%emt 0:02:21]} b6 {[%emt 0:08:38]} 17. Qg2 {[%emt 0:13:52]} Ne7 {[%emt 0:01:10]} 18. Nd4 Ne4 {[%emt 0:01:12]} 19. h3 {[%emt 0:02:33]} Qd7 20. a4 {[%emt 0:02:28]} Ba6 {[%emt 0:01:38]} 21. Rd1 {[%emt 0:00:54]} Nc6 22. gxf5 {[%emt 0:04:03]} Nxd4 {[%emt 0:03:47]} 23. Rxd4 {[%emt 0:03:23]} Nc5 {[%emt 0:00:12]} 24. Bc2 {[%emt 0:03:18]} exf5 {[%emt 0:01:10]} 25. Qxd5+ {[%emt 0:00:52]} Qxd5 {[%emt 0:00:22]} 26. Rxd5 {[%emt 0:00:01]} Bb7 {[%emt 0:02:04]} 27. Rd6 {[%emt 0:00:59]} Be4 {[%emt 0:00:16]} 28. Bxe4 {[%emt 0:01:32]} fxe4 {[%emt 0:00:55]} 29. Rxb6 {[%emt 0:02:39]} Nd3 30. e6 {[%emt 0:03:39]} Rae8 {[%emt 0:01:10]} 31. Be3 {[%emt 0:00:30]} Nxf4 {[%emt 0:00:15]} 32. Bxf4 {[%emt 0:00:47]} Rxf4 {[%emt 0:00:01]} 33. Re1 {[%emt 0:00:42]} g5 {[%emt 0:00:25]} 34. Rb5 {[%emt 0:01:32]} Rxe6 {[%emt 0:00:15]} 35. Rxg5+ {[%emt 0:00:39]} Kf7 {[%emt 0:00:18]} 36. Rf1 Rxf1+ {[%emt 0:01:17]} 37. Kxf1 {[%emt 0:00:34]} Rh6 {[%emt 0:00:26]} 38. Rxa5 {[%emt 0:00:42]} Rxh3 {[%emt 0:00:04]} 39. Rb5 {[%emt 0:00:21]} Rh1+ {[%emt 0:00:32]} 40. Kf2 Kg6 {[%emt 0:00:00]} 41. a5 {[%emt 0:08:39]} h5 {[%emt 0:02:02]} 42. b4 {[%emt 0:05:42]} h4 {[%emt 0:03:06]} 43. a6 {[%emt 0:03:19]} h3 {[%emt 0:00:23]} 44. a7 {[%emt 0:00:30]} h2 {[%emt 0:00:30]} 45. a8=Q {[%emt 0:01:44]} Rf1+ {[%emt 0:00:32]} 46. Ke2 {[%emt 0:00:15]} Re1+ {[%emt 0:00:30]} 47. Kd2 1-0

[Event "ESP chT Honor Division 2019"]
[Site "Melilla"]
[Date "2019.10.04"]
[Round "5.12"]
[White "Milliet, Sophie"]
[Black "Vega Gutierrez, Sabrina"]
[Result "1/2-1/2"]
[ECO "B30"]
[WhiteElo "2400"]
[BlackElo "2395"]
[Annotator "NA"]
[PlyCount "87"]
[EventDate "2019.09.30"]
[EventType "team-tourn"]
[EventCountry "ESP"]
[SourceTitle "playchess.com"]
[Source "ChessBase"]
[SourceQuality "1"]
[TimeControl "40/5400+30:1800+30"]

1. e4 {[%emt 0:00:00]} c5 {[%emt 0:00:00]} 2. Nf3 {[%emt 0:00:00]} Nc6 {[%emt 0:00:00]} 3. Bb5 {[%emt 0:00:00]} e6 {[%emt 0:00:08]} 4. O-O {[%emt 0:00:22]} Nge7 {[%emt 0:00:20]} 5. Re1 {[%emt 0:00:50]} a6 {[%emt 0:00:11]} 6. Bxc6 {[%emt 0:00:29]} Nxc6 {[%emt 0:00:10]} 7. d4 {[%emt 0:00:11]} cxd4 {[%emt 0:00:10]} 8. Nxd4 {[%emt 0:00:03]} d6 {[%emt 0:09:54]} 9. Nc3 {[%emt 0:00:11]} Be7 {[%emt 0:01:44]} 10. Nxc6 {[%emt 0:00:25]} bxc6 {[%emt 0:00:09]} 11. Qg4 {[%emt 0:00:19]} Kf8 {[%emt 0:00:22]} 12. Qh5 {[%emt 0:00:46]} e5 {[%emt 0:29:48]} 13. f4 {[%emt 0:29:10]} f6 {[%emt 0:02:34]} 14. fxe5 {[%emt 0:03:36]} dxe5 {[%emt 0:00:20]} 15. Be3 {[%emt 0:00:20]} Be6 {[%emt 0:08:28]} 16. Na4 {[%emt 0:02:09]} Qa5 {[%emt 0:03:32]} 17. b3 {[%emt 0:00:11]} Rb8 {[%emt 0:00:16]} 18. Rad1 {[%emt 0:09:37]} Qb4 {[%emt 0:14:14]} 19. Qf3 {[%emt 0:08:56]} Kf7 {[%emt 0:01:00]} 20. c3 {[%emt 0:00:54]} Qb5 {[%emt 0:03:10]} 21. Qf2 {[%emt 0:01:18]} Rhd8 {[%emt 0:02:59]} 22. h3 {[%emt 0:09:09]} Rxd1 {[%emt 0:12:51]} 23. Rxd1 {[%emt 0:00:03]} Rd8 {[%emt 0:00:11]} 24. Rxd8 {[%emt 0:05:08]} Bxd8 {[%emt 0:00:02]} 25. Qd2 {[%emt 0:00:27]} Be7 {[%emt 0:02:03]} 26. Bf2 {[%emt 0:14:09]} Qb8 {[%emt 0:04:37]} 27. Qe2 {[%emt 0:02:36]} Qb5 {[%emt 0:03:16]} 28. c4 {[%emt 0:01:54]} Qb4 {[%emt 0:00:31]} 29. Qh5+ {[%emt 0:04:59]} Kf8 {[%emt 0:00:03]} 30. Qxh7 {[%emt 0:00:15]} Qd2 {[%emt 0:00:59]} 31. Nc5 {[%emt 0:02:07]} Bg8 {[%emt 0:00:55]} 32. Qf5 {[%emt 0:00:41]} Qc1+ {[%emt 0:00:29]} 33. Kh2 {[%emt 0:00:04]} Bxc5 {[%emt 0:00:33]} 34. Bxc5+ {[%emt 0:00:07]} Kf7 {[%emt 0:00:14]} 35. Qd7+ {[%emt 0:02:44]} Kg6 {[%emt 0:00:02]} 36. Qf5+ {[%emt 0:01:08]} Kh6 {[%emt 0:00:49]} 37. Bd6 {[%emt 0:02:26]} Qd2 {[%emt 0:00:50]} 38. c5 {[%emt 0:00:39]} Bh7 {[%emt 0:00:22]} 39. Qg4 {[%emt 0:00:07]} Qg5 {[%emt 0:00:36]} 40. Qf3 {[%emt 0:00:14]} Qg6 {[%emt 0:00:35]} 41. Bf8 {[%emt 0:15:42]} Qg5 {[%emt 0:02:04]} 42. Bd6 {[%emt 0:04:10]} Bg6 {[%emt 0:08:29]} 43. Qg3 {[%emt 0:09:09]} Bxe4 {[%emt 0:02:20]} 44. Qxg5+ {[%emt 0:00:15]} 1/2-1/2

[Event "ESP chT Honor Division 2019"]
[Site "Melilla"]
[Date "2019.10.04"]
[Round "5.13"]
[White "Cheparinov, Ivan"]
[Black "Bacrot, Etienne"]
[Result "1-0"]
[ECO "D37"]
[WhiteElo "2670"]
[BlackElo "2671"]
[Annotator "ChessBase"]
[PlyCount "58"]
[EventDate "2019.09.30"]
[EventType "team-tourn"]
[EventCountry "ESP"]
[SourceTitle "playchess.com"]
[Source "ChessBase"]
[SourceQuality "1"]
[TimeControl "40/5400+30:1800+30"]

1. d4 {[%emt 0:00:00]} d5 {[%emt 0:06:20]} 2. Nf3 Nf6 {[%emt 0:00:04]} 3. c4 {[%emt 0:00:00]} e6 4. Nc3 {[%emt 0:00:00]} Be7 {[%emt 0:00:35]} 5. Bf4 {[%emt 0:00:00]} O-O {[%emt 0:00:43]} 6. e3 {[%emt 0:00:00]} Nbd7 {[%emt 0:01:05]} 7. Be2 {[%emt 0:00:36]} dxc4 8. O-O a6 {[%emt 0:07:16]} 9. a4 {[%emt 0:00:56]} c5 {[%emt 0:00:05]} 10. d5 {[%emt 0:00:24]} exd5 {[%emt 0:00:04]} 11. Nxd5 {[%emt 0:00:08]} Nxd5 {[%emt 0:00:06]} 12. Qxd5 {[%emt 0:00:05]} Nf6 {[%emt 0:00:05]} 13. Qxd8 {[%emt 0:00:30]} Rxd8 {[%emt 0:01:28]} 14. Bc7 {[%emt 0:00:07]} Rd7 {[%emt 0:03:49]} 15. Ba5 Rd6 {[%emt 0:16:28]} 16. Ne5 {[%emt 0:08:00]} b6 {[%emt 0:01:38]} 17. Bc3 {[%emt 0:05:12]} Bb7 {[%emt 0:02:48]} 18. Nxc4 {[%emt 0:00:30]} Re6 {[%emt 0:18:11]} 19. Rfd1 {[%emt 0:04:56]} Ne4 20. Be1 {[%emt 0:03:40]} Nf6 {[%emt 0:01:18]} 21. Bc3 {[%emt 0:20:37]} Ne4 {[%emt 0:00:27]} 22. Be5 {[%emt 0:01:35]} b5 {[%emt 0:28:19]} 23. Bg4 {[%emt 0:01:29]} Rg6 {[%emt 0:00:06]} 24. Rd7 {[%emt 0:03:59]} Rxg4 {[%emt 0:05:06]} 25. Rxb7 {[%emt 0:03:43]} bxc4 {[%emt 0:03:09]} 26. Rxe7 {[%emt 0:00:17]} Kf8 {[%emt 0:02:38]} 27. Rb7 {[%emt 0:02:32]} Rg6 {[%emt 0:00:37]} 28. Rd1 {[%emt 0:00:10]} Re8 {[%emt 0:00:26]} 29. Rdd7 {[%emt 0:00:41]} f6 1-0

[Event "ESP chT Honor Division 2019"]
[Site "Melilla"]
[Date "2019.10.04"]
[Round "5.14"]
[White "Naiditsch, Arkadij"]
[Black "Predke, Alexandr"]
[Result "1/2-1/2"]
[ECO "C84"]
[WhiteElo "2643"]
[BlackElo "2657"]
[Annotator "ChessBase"]
[PlyCount "82"]
[EventDate "2019.09.30"]
[EventType "team-tourn"]
[EventCountry "ESP"]
[SourceTitle "playchess.com"]
[Source "ChessBase"]
[SourceQuality "1"]
[TimeControl "40/5400+30:1800+30"]

1. e4 e5 2. Nf3 Nc6 {[%emt 0:00:57]} 3. Bb5 {[%emt 0:00:06]} a6 {[%emt 0:00:05]} 4. Ba4 {[%emt 0:00:00]} Nf6 5. O-O Be7 {[%emt 0:00:09]} 6. d3 {[%emt 0:00:30]} d6 {[%emt 0:00:07]} 7. c3 {[%emt 0:00:28]} O-O {[%emt 0:00:12]} 8. Nbd2 {[%emt 0:00:40]} b5 {[%emt 0:00:09]} 9. Bc2 {[%emt 0:00:15]} d5 {[%emt 0:00:15]} 10. Re1 {[%emt 0:01:31]} dxe4 {[%emt 0:01:23]} 11. dxe4 {[%emt 0:00:19]} Be6 {[%emt 0:00:11]} 12. Qe2 {[%emt 0:00:21]} Qc8 {[%emt 0:00:33]} 13. a4 {[%emt 0:01:16]} Rb8 {[%emt 0:00:23]} 14. b4 {[%emt 0:03:07]} Bd6 {[%emt 0:01:05]} 15. Bd3 {[%emt 0:01:38]} Qb7 {[%emt 0:00:11]} 16. Nf1 {[%emt 0:00:46]} h6 {[%emt 0:00:44]} 17. Nh4 {[%emt 0:13:36]} Rfd8 {[%emt 0:12:06]} 18. h3 {[%emt 0:15:50]} Ne7 {[%emt 0:08:19]} 19. Ng3 {[%emt 0:16:20]} c5 {[%emt 0:03:21]} 20. axb5 {[%emt 0:06:20]} axb5 {[%emt 0:00:11]} 21. bxc5 {[%emt 0:00:20]} Bxc5 {[%emt 0:00:06]} 22. Rb1 {[%emt 0:00:34]} b4 {[%emt 0:04:51]} 23. cxb4 {[%emt 0:02:04]} Bxb4 {[%emt 0:00:07]} 24. Bd2 {[%emt 0:06:13]} Nc6 {[%emt 0:00:12]} 25. Ngf5 {[%emt 0:04:04]} Qd7 {[%emt 0:01:58]} 26. Bxb4 {[%emt 0:03:47]} Qxd3 {[%emt 0:01:47]} 27. Qxd3 {[%emt 0:00:37]} Rxd3 {[%emt 0:00:08]} 28. Ne7+ {[%emt 0:00:35]} Nxe7 {[%emt 0:00:07]} 29. Bxe7 {[%emt 0:00:04]} Rxb1 {[%emt 0:00:45]} 30. Rxb1 {[%emt 0:00:05]} Nxe4 {[%emt 0:00:18]} 31. Re1 {[%emt 0:00:10]} Bd5 {[%emt 0:05:27]} 32. f3 {[%emt 0:03:41]} Nc3 {[%emt 0:00:23]} 33. Rxe5 {[%emt 0:00:39]} Be6 {[%emt 0:00:05]} 34. Bc5 {[%emt 0:02:38]} Rd2 {[%emt 0:08:51]} 35. Be3 {[%emt 0:02:45]} Rd1+ {[%emt 0:03:07]} 36. Kf2 {[%emt 0:03:06]} Rd3 {[%emt 0:03:52]} 37. Bc1 {[%emt 0:03:29]} Rd1 {[%emt 0:06:32]} 38. Be3 {[%emt 0:00:28]} Ra1 {[%emt 0:02:00]} 39. Ng6 {[%emt 0:01:08]} Nd1+ {[%emt 0:02:54]} 40. Kg3 {[%emt 0:00:21]} Nxe3 {[%emt 0:00:12]} 41. Rxe3 {[%emt 0:30:09]} fxg6 {[%emt 0:30:06]} 1/2-1/2

[Event "ESP chT Honor Division 2019"]
[Site "Melilla"]
[Date "2019.10.04"]
[Round "5.15"]
[White "Santos Latasa, Jaime"]
[Black "Paehtz, Elisabeth"]
[Result "1/2-1/2"]
[ECO "C11"]
[WhiteElo "2580"]
[BlackElo "2489"]
[Annotator "ChessBase"]
[PlyCount "101"]
[EventDate "2019.09.30"]
[EventType "team-tourn"]
[EventCountry "ESP"]
[SourceTitle "playchess.com"]
[Source "ChessBase"]
[SourceQuality "1"]
[TimeControl "40/5400+30:1800+30"]

1. e4 {[%emt 0:00:00]} e6 {[%emt 0:00:00]} 2. d4 {[%emt 0:00:00]} d5 {[%emt 0:00:00]} 3. Nc3 {[%emt 0:00:00]} Nf6 {[%emt 0:00:00]} 4. e5 {[%emt 0:00:10]} Nfd7 {[%emt 0:00:00]} 5. f4 {[%emt 0:00:04]} c5 {[%emt 0:00:00]} 6. Nf3 {[%emt 0:00:04]} Nc6 {[%emt 0:00:00]} 7. Be3 {[%emt 0:00:13]} Be7 {[%emt 0:00:00]} 8. Qd2 {[%emt 0:00:20]} O-O {[%emt 0:00:01]} 9. dxc5 {[%emt 0:00:13]} Qa5 {[%emt 0:00:05]} 10. O-O-O {[%emt 0:02:04]} b6 {[%emt 0:00:01]} 11. Bb5 {[%emt 0:00:08]} Nb4 {[%emt 0:00:06]} 12. a3 {[%emt 0:00:05]} bxc5 {[%emt 0:00:07]} 13. Kb1 {[%emt 0:00:04]} Rb8 {[%emt 0:00:02]} 14. axb4 {[%emt 0:00:10]} cxb4 {[%emt 0:00:08]} 15. Nxd5 {[%emt 0:00:03]} exd5 {[%emt 0:00:12]} 16. Bxd7 {[%emt 0:00:03]} Bxd7 {[%emt 0:00:03]} 17. Qxd5 {[%emt 0:00:06]} Qxd5 {[%emt 0:00:04]} 18. Rxd5 {[%emt 0:00:04]} Bc6 {[%emt 0:00:07]} 19. Ra5 {[%emt 0:00:39]} Rfc8 {[%emt 0:00:15]} 20. b3 {[%emt 0:04:44]} Be4 {[%emt 0:02:06]} 21. Nd4 {[%emt 0:00:23]} g6 {[%emt 0:22:15]} 22. Re1 {[%emt 0:13:00]} Bxg2 {[%emt 0:43:47]} 23. Nf5 {[%emt 0:07:59]} Bf8 {[%emt 0:00:08]} 24. Bxa7 {[%emt 0:00:36]} Ra8 {[%emt 0:01:44]} 25. Nd6 {[%emt 0:03:09]} Rc6 {[%emt 0:03:23]} 26. Rd1 {[%emt 0:03:45]} f6 {[%emt 0:07:15]} 27. Nc4 {[%emt 0:06:08]} Be4 {[%emt 0:01:37]} 28. Bb6 {[%emt 0:05:49]} Rac8 {[%emt 0:05:05]} 29. Rd8 {[%emt 0:01:47]} fxe5 {[%emt 0:02:49]} 30. Rxe5 {[%emt 0:09:00]} Rxd8 {[%emt 0:01:46]} 31. Bxd8 {[%emt 0:00:19]} Bf5 {[%emt 0:00:44]} 32. Be7 {[%emt 0:00:56]} Bh6 {[%emt 0:03:09]} 33. Bd6 {[%emt 0:05:12]} Rc8 {[%emt 0:03:40]} 34. Rb5 {[%emt 0:03:05]} Re8 {[%emt 0:00:21]} 35. Be5 {[%emt 0:00:10]} Bf8 {[%emt 0:00:19]} 36. Ne3 {[%emt 0:00:45]} Bd7 {[%emt 0:02:56]} 37. Rb7 {[%emt 0:01:22]} Bc6 {[%emt 0:00:15]} 38. Rc7 {[%emt 0:00:11]} Bf3 {[%emt 0:00:10]} 39. Rd7 {[%emt 0:04:38]} Bc6 {[%emt 0:01:00]} 40. Rd2 {[%emt 0:01:36]} Kf7 {[%emt 0:01:41]} 41. Nc4 {[%emt 0:32:40]} Ke6 {[%emt 0:31:30]} 42. Bd6 {[%emt 0:01:01]} Bh6 {[%emt 0:00:00]} 43. Rf2 {[%emt 0:00:00]} Bb5 {[%emt 0:00:00]} 44. Bxb4 {[%emt 0:00:00]} Bxc4 {[%emt 0:00:00]} 45. bxc4 {[%emt 0:00:00]} Rc8 {[%emt 0:00:00]} 46. Re2+ {[%emt 0:00:00]} Kf5 {[%emt 0:00:00]} 47. Re5+ {[%emt 0:00:00]} Kg4 {[%emt 0:00:00]} 48. h3+ {[%emt 0:00:00]} Kxh3 {[%emt 0:00:00]} 49. Re7 {[%emt 0:00:00]} Bxf4 {[%emt 0:00:00]} 50. Rxh7+ {[%emt 0:00:00]} Kg4 {[%emt 0:00:00]} 51. c3 {[%emt 0:00:00]} 1/2-1/2

[Event "ESP chT Honor Division 2019"]
[Site "Melilla"]
[Date "2019.10.04"]
[Round "5.16"]
[White "Franco Alonso, Alejandro"]
[Black "Perez Candelario, Manuel"]
[Result "1/2-1/2"]
[ECO "E91"]
[WhiteElo "2384"]
[BlackElo "2621"]
[Annotator "ChessBase"]
[PlyCount "73"]
[EventDate "2019.09.30"]
[EventType "team-tourn"]
[EventCountry "ESP"]
[SourceTitle "playchess.com"]
[Source "ChessBase"]
[SourceQuality "1"]
[TimeControl "40/5400+30:1800+30"]

1. Nf3 {[%emt 0:00:00]} Nf6 {[%emt 0:00:00]} 2. c4 {[%emt 0:00:00]} g6 {[%emt 0:00:00]} 3. Nc3 {[%emt 0:00:00]} Bg7 {[%emt 0:00:00]} 4. e4 {[%emt 0:00:00]} d6 {[%emt 0:00:00]} 5. d4 {[%emt 0:00:04]} O-O {[%emt 0:00:00]} 6. Be2 {[%emt 0:00:15]} Nbd7 {[%emt 0:00:27]} 7. O-O {[%emt 0:01:22]} e5 {[%emt 0:00:13]} 8. Be3 {[%emt 0:00:10]} Re8 {[%emt 0:00:44]} 9. d5 {[%emt 0:00:41]} Nh5 {[%emt 0:00:12]} 10. g3 {[%emt 0:00:18]} Bf8 {[%emt 0:00:07]} 11. Ne1 {[%emt 0:00:31]} Ng7 {[%emt 0:00:05]} 12. Nd3 {[%emt 0:00:16]} f5 {[%emt 0:00:18]} 13. f3 {[%emt 0:00:41]} Be7 {[%emt 0:00:08]} 14. Qd2 {[%emt 0:00:37]} Rf8 {[%emt 0:00:41]} 15. Rac1 {[%emt 0:08:04]} a5 {[%emt 0:06:48]} 16. a3 {[%emt 0:10:16]} b6 {[%emt 0:00:55]} 17. b4 {[%emt 0:06:22]} Nf6 {[%emt 0:20:34]} 18. Nf2 {[%emt 0:00:44]} Nfh5 {[%emt 0:04:29]} 19. Bh6 {[%emt 0:00:56]} f4 {[%emt 0:09:41]} 20. g4 {[%emt 0:12:07]} Bg5 {[%emt 0:02:13]} 21. Bxg5 {[%emt 0:06:59]} Qxg5 {[%emt 0:00:07]} 22. Nd3 {[%emt 0:02:19]} Nf6 {[%emt 0:08:24]} 23. Qe1 {[%emt 0:01:16]} Qh6 {[%emt 0:04:50]} 24. c5 {[%emt 0:14:28]} axb4 {[%emt 0:05:24]} 25. axb4 {[%emt 0:00:06]} bxc5 {[%emt 0:00:40]} 26. bxc5 {[%emt 0:00:08]} g5 {[%emt 0:08:33]} 27. Nf2 {[%emt 0:08:13]} Nd7 {[%emt 0:02:13]} 28. c6 {[%emt 0:10:10]} Nc5 {[%emt 0:00:19]} 29. Ra1 {[%emt 0:00:25]} Rb8 {[%emt 0:11:19]} 30. Rb1 {[%emt 0:02:00]} Ra8 {[%emt 0:01:48]} 31. Ra1 {[%emt 0:00:21]} Rb8 {[%emt 0:00:37]} 32. Nb5 {[%emt 0:02:27]} Ne8 {[%emt 0:01:09]} 33. Ra7 {[%emt 0:01:51]} Qh4 {[%emt 0:08:08]} 34. Nd1 {[%emt 0:02:27]} Qh3 {[%emt 0:00:56]} 35. Nf2 {[%emt 0:00:20]} Qh4 {[%emt 0:00:04]} 36. Nd1 {[%emt 0:06:28]} Qh3 {[%emt 0:00:04]} 37. Nf2 {[%emt 0:01:10]} 1/2-1/2